bitfinex-derivatives/quotes_BTCF0:USTF0_20260214
["timestamp","ask_amount","ask_price","bid_price","bid_amount"]
[1771063260007,0.0144,69678.0,69670.0,0.0144]
[1771063260510,0.01436,69675.0,69670.0,0.0144]
[1771063261012,0.014359,69677.0,69670.0,0.0144]
[1771063261303,0.0144,69678.0,69670.0,0.0144]
[1771063261509,0.01436,69675.0,69670.0,0.0144]
[1771063261911,0.014359,69677.0,69670.0,0.0144]
[1771063262110,0.01436,69676.0,69670.0,0.028761]
[1771063262309,0.01436,69675.0,69670.0,0.028761]
[1771063262507,0.014359,69677.0,69670.0,0.028761]
[1771063263009,0.014359,69680.0,69671.0,0.09163398]
[1771063263316,0.0144,69679.0,69674.0,0.01436]
[1771063263502,0.014358,69682.0,69674.0,0.01436]
[1771063263706,0.0144,69681.0,69675.0,0.01436]
[1771063263903,0.1436,69684.0,69675.0,0.01436]
[1771063264102,0.1436,69684.0,69673.0,0.0144]
[1771063264103,0.014359,69679.0,69673.0,0.02876]
[1771063264305,0.014359,69678.0,69673.0,0.0144]
[1771063264506,0.014359,69677.0,69673.0,0.0144]
[1771063264706,0.028758,69683.0,69651.0,0.014365]
[1771063264707,0.014362,69665.0,69651.0,0.014365]
[1771063264906,0.014363,69658.0,69650.0,0.014365]
[1771063265110,0.014364,69656.0,69650.0,0.014365]
[1771063265504,0.014364,69655.0,69649.0,0.014365]
[1771063265709,0.00010316,69654.0,69649.0,0.014365]
[1771063265912,0.014364,69655.0,69648.0,0.014365]
[1771063266115,0.028764,69657.0,69648.0,0.014365]
[1771063266410,0.014364,69655.0,69649.0,0.014365]
[1771063266714,0.028764,69657.0,69649.0,0.014365]
[1771063266909,4.895e-05,69656.0,69649.0,0.014365]
[1771063267115,0.028764,69657.0,69649.0,0.014365]
[1771063267315,0.014364,69656.0,69649.0,0.014365]
[1771063267514,0.028764,69657.0,69649.0,0.014365]
[1771063267710,0.014364,69655.0,69649.0,0.014365]
[1771063268710,0.014364,69653.0,69647.0,0.0144]
[1771063268910,0.014365,69652.0,69647.0,0.0144]
[1771063269116,0.014365,69651.0,69647.0,0.0144]
[1771063269718,0.028728,69653.0,69647.0,0.0144]
[1771063269916,0.014365,69649.0,69647.0,0.0144]
[1771063270114,0.09231032,69656.0,69647.0,0.0144]
[1771063270314,0.014365,69650.0,69647.0,0.0144]
[1771063270512,0.014365,69649.0,69647.0,0.0144]
[1771063271522,0.014366,69643.0,69637.0,0.157968]
[1771063271719,0.014366,69643.0,69638.0,0.0144]
[1771063273122,0.014366,69645.0,69630.0,0.014369]
[1771063273123,0.014368,69635.0,69630.0,0.14364]
[1771063273311,0.014368,69635.0,69631.0,0.0144]
[1771063273510,0.014369,69631.0,69630.0,0.14364]
[1771063273718,0.014367,69640.0,69631.0,0.014369]
[1771063273920,0.0144,69640.0,69632.0,0.12040298]
[1771063274116,0.0144,69640.0,69632.0,0.10603398]
[1771063274422,0.01000536,69640.0,69633.0,0.014368]
[1771063274622,0.01000536,69640.0,69635.0,0.014368]
[1771063275015,0.01000536,69640.0,69633.0,0.014368]
[1771063275220,0.01000536,69640.0,69634.0,0.014368]
[1771063275425,0.02437236,69640.0,69634.0,0.014368]
[1771063277124,0.014367,69639.0,69633.0,0.014368]
[1771063277325,0.014368,69636.0,69632.0,0.0144]
[1771063277626,0.014368,69638.0,69629.0,0.0144]
[1771063277823,0.014368,69637.0,69630.0,0.014369]
[1771063278321,0.014369,69632.0,69627.0,0.0144]
[1771063278525,0.10231568,69640.0,69630.0,0.014369]
[1771063278722,0.014368,69636.0,69630.0,0.014369]
[1771063278925,0.014368,69636.0,69629.0,0.014369]
[1771063279125,0.014368,69635.0,69629.0,0.014369]
[1771063279328,0.014368,69636.0,69629.0,0.014369]
[1771063279531,0.014368,69636.0,69630.0,0.0144]
[1771063280528,0.014368,69636.0,69630.0,0.028769]
[1771063280827,0.014368,69638.0,69630.0,0.028769]
[1771063281126,0.014368,69636.0,69630.0,0.028769]
[1771063281931,0.014368,69638.0,69631.0,0.014369]
[1771063283033,0.014367,69638.0,69627.0,0.014369]
[1771063283233,0.014368,69634.0,69628.0,0.0144]
[1771063283625,0.014368,69636.0,69630.0,0.014369]
[1771063283934,0.014368,69634.0,69628.0,0.028769]
[1771063284527,0.014368,69634.0,69628.0,0.014369]
[1771063285329,0.014368,69634.0,69627.0,0.02877]
[1771063285529,0.028736,69634.0,69627.0,0.02877]
[1771063285832,0.014368,69633.0,69627.0,0.02877]
[1771063286432,0.014368,69635.0,69628.0,0.014369]
[1771063286636,0.014368,69634.0,69628.0,0.014369]
[1771063287332,0.014368,69634.0,69627.0,0.01437]
[1771063287531,0.014368,69633.0,69627.0,0.01437]
[1771063289334,0.014368,69634.0,69627.0,0.01437]
[1771063289531,0.014368,69634.0,69628.0,0.014369]
[1771063290330,0.09231032,69632.0,69625.0,0.0144]
[1771063290525,0.01437,69628.0,69625.0,0.0144]
[1771063290731,0.01437,69627.0,69625.0,0.0144]
[1771063291229,0.01437,69626.0,69623.0,0.15808]
[1771063291426,0.08510844,69650.0,69637.0,0.014368]
[1771063291624,0.014364,69653.0,69628.0,0.08899349]
[1771063291625,0.014367,69642.0,69634.0,0.014368]
[1771063291827,0.0144,69644.0,69634.0,0.014368]
[1771063292125,0.0144,69644.0,69639.0,0.014367]
[1771063292324,0.0144,69645.0,69640.0,0.014367]
[1771063292528,0.0144,69645.0,69637.0,0.0144]
[1771063292529,0.028766,69645.0,69638.0,0.014367]
[1771063292729,0.014366,69644.0,69638.0,0.014367]
[1771063292933,0.014366,69644.0,69637.0,0.028768]
[1771063293334,0.014367,69641.0,69637.0,0.0144]
[1771063293534,0.014367,69640.0,69637.0,3.4e-05]
[1771063294228,0.0144,69640.0,69627.0,0.14368]
[1771063294432,0.014369,69629.0,69621.0,0.014371]
[1771063294629,0.014369,69629.0,69623.0,0.01437]
[1771063294830,0.0144,69632.0,69626.0,0.01437]
[1771063295027,0.028769,69632.0,69626.0,0.01437]
[1771063295231,0.028769,69632.0,69625.0,0.01437]
[1771063296631,0.0144,69632.0,69622.0,0.0144]
[1771063296937,0.0144,69632.0,69629.0,0.014369]
[1771063297137,0.0144,69634.0,69629.0,0.014369]
[1771063297736,0.0144,69634.0,69628.0,0.014369]
[1771063297934,0.014369,69631.0,69626.0,0.0144]
[1771063298535,0.014369,69632.0,69626.0,0.0144]
[1771063298735,0.014369,69632.0,69626.0,0.02877]
[1771063299443,0.01437,69625.0,69617.0,0.01453949]
[1771063299739,0.01437,69623.0,69617.0,0.01453749]
[1771063299934,0.01437,69626.0,69617.0,0.01453749]
[1771063300237,0.01437,69626.0,69619.0,0.014371]
[1771063300436,0.02877,69627.0,69618.0,0.014371]
[1771063300437,0.01437,69624.0,69618.0,0.014371]
[1771063301032,0.01437,69625.0,69618.0,0.014371]
[1771063301233,0.01437,69624.0,69618.0,0.014371]
[1771063301638,0.014371,69622.0,69617.0,0.00016749]
[1771063301938,0.014371,69622.0,69617.0,0.01453749]
[1771063302240,0.014371,69623.0,69617.0,0.01453749]
[1771063303339,0.014371,69622.0,69617.0,0.01453749]
[1771063303542,0.014371,69620.0,69617.0,0.01453749]
[1771063304339,0.014371,69619.0,69617.0,0.01453749]
[1771063304545,0.014371,69620.0,69617.0,0.00013749]
[1771063304743,0.014371,69620.0,69615.0,0.0144]
[1771063304943,0.014371,69621.0,69616.0,0.00013749]
[1771063305138,0.014371,69620.0,69616.0,0.00013749]
[1771063305337,0.014371,69620.0,69615.0,0.0144]
[1771063305538,0.00011433,69619.0,69616.0,0.00013749]
[1771063306134,0.00011433,69619.0,69613.0,0.014372]
[1771063306135,0.01448533,69619.0,69612.0,0.014373]
[1771063306341,0.00011433,69619.0,69614.0,0.00013749]
[1771063306548,0.00011433,69619.0,69615.0,0.014372]
[1771063306844,0.00011433,69619.0,69613.0,0.014372]
[1771063307051,0.014371,69621.0,69613.0,0.014372]
[1771063307241,0.0144,69628.0,69624.0,0.01437]
[1771063307543,0.028769,69630.0,69623.0,0.01437]
[1771063307743,0.0144,69630.0,69623.0,0.01437]
[1771063308143,0.0144,69630.0,69625.0,0.01437]
[1771063308646,0.09977173,69630.0,69621.0,0.0144]
[1771063308841,0.014369,69629.0,69622.0,0.014371]
[1771063309248,0.028738,69629.0,69621.0,0.028771]
[1771063309441,0.01437,69628.0,69621.0,0.028771]
[1771063309643,0.01437,69628.0,69621.0,0.014371]
[1771063309847,0.01437,69627.0,69621.0,0.014371]
[1771063310650,0.014369,69628.0,69621.0,0.014371]
[1771063310948,0.014369,69629.0,69622.0,0.014371]
[1771063311649,0.014369,69628.0,69622.0,0.014371]
[1771063312252,0.0144,69627.0,69622.0,0.014371]
[1771063312654,0.0144,69627.0,69623.0,0.01437]
[1771063312851,0.0144,69627.0,69622.0,0.028742]
[1771063313152,0.0144,69627.0,69622.0,0.014371]
[1771063313552,0.02877,69627.0,69620.0,0.014371]
[1771063313752,0.02877,69627.0,69621.0,0.014371]
[1771063314152,0.02877,69627.0,69620.0,0.014371]
[1771063314552,0.0144,69627.0,69623.0,0.01437]
[1771063314759,0.014368,69634.0,69626.0,0.01437]
[1771063314960,0.014369,69631.0,69624.0,0.01437]
[1771063315354,0.0144,69632.0,69627.0,0.01437]
[1771063315654,0.08537173,69639.0,69627.0,0.01437]
[1771063315655,0.014366,69644.0,69629.0,0.014369]
[1771063315848,0.014366,69643.0,69637.0,0.014368]
[1771063316052,0.0144,69642.0,69637.0,0.014368]
[1771063316252,0.0144,69642.0,69637.0,0.014367]
[1771063316759,0.028767,69642.0,69634.0,0.014368]
[1771063317058,0.028767,69642.0,69636.0,0.014368]
[1771063317961,0.014367,69639.0,69634.0,0.0144]
[1771063318165,0.014367,69638.0,69634.0,0.0144]
[1771063318370,0.014367,69639.0,69632.0,0.0144]
[1771063318371,0.014368,69635.0,69632.0,0.0144]
[1771063318661,0.014368,69638.0,69632.0,0.028769]
[1771063318861,0.09973773,69643.0,69636.0,0.014368]
[1771063319048,0.0144,69642.0,69635.0,0.014368]
[1771063319257,0.0144,69642.0,69632.0,0.00013749]
[1771063319461,0.028767,69642.0,69636.0,0.014368]
[1771063320165,0.028767,69642.0,69633.0,0.014368]
[1771063320166,0.014367,69639.0,69633.0,0.014368]
[1771063320461,0.014367,69640.0,69634.0,0.014368]
[1771063320660,0.014367,69640.0,69635.0,0.014368]
[1771063320852,0.01444,69642.0,69641.0,0.014367]
[1771063321054,0.143218,69647.0,69638.0,0.014367]
[1771063321055,0.01444,69644.0,69638.0,0.014367]
[1771063321262,0.028806,69644.0,69638.0,0.028734]
[1771063321456,0.01444,69644.0,69640.0,0.014367]
[1771063321656,0.014365,69652.0,69645.0,0.014366]
[1771063321657,0.01444,69648.0,69645.0,0.014366]
[1771063321861,0.014365,69652.0,69646.0,0.01450349]
[1771063321862,0.028805,69652.0,69646.0,0.01450349]
[1771063322057,0.014365,69652.0,69646.0,0.014366]
[1771063322362,0.014365,69652.0,69643.0,0.028806]
[1771063322363,0.014365,69650.0,69645.0,0.014366]
[1771063322662,0.014365,69649.0,69645.0,0.00013749]
[1771063322963,0.014365,69651.0,69646.0,0.028732]
[1771063323160,0.01444,69652.0,69648.0,0.014365]
[1771063323464,0.028805,69652.0,69647.0,0.014365]
[1771063324164,0.014365,69651.0,69646.0,0.014366]
[1771063324358,0.014365,69651.0,69646.0,0.028732]
[1771063324764,0.014365,69651.0,69646.0,0.014366]
[1771063324970,0.014365,69648.0,69645.0,0.00013749]
[1771063325764,0.01444,69652.0,69646.0,0.014366]
[1771063326064,0.028805,69652.0,69646.0,0.014366]
[1771063326264,0.014365,69649.0,69644.0,7.4e-05]
[1771063326566,0.02873,69649.0,69643.0,0.028806]
[1771063326767,0.014365,69648.0,69643.0,0.028806]
[1771063327370,0.014365,69649.0,69643.0,0.028806]
[1771063327571,0.014365,69649.0,69644.0,0.01450349]
[1771063327775,0.014365,69650.0,69644.0,0.01450349]
[1771063328072,0.028805,69651.0,69643.0,0.01444]
[1771063328256,0.028805,69651.0,69644.0,0.01450349]
[1771063328472,0.014365,69649.0,69644.0,0.00013749]
[1771063328662,0.014365,69648.0,69644.0,0.00013749]
[1771063328862,0.014365,69648.0,69643.0,0.0144]
[1771063331763,0.014365,69649.0,69625.0,0.10256295]
[1771063331764,0.09106558,69646.0,69625.0,0.10256295]
[1771063331970,0.014367,69640.0,69633.0,0.014368]
[1771063332169,0.014367,69640.0,69634.0,0.0144]
[1771063332364,0.014367,69640.0,69625.0,0.14368]
[1771063332365,0.0144,69640.0,69625.0,0.14368]
[1771063332571,0.014368,69636.0,69629.0,0.014369]
[1771063332771,0.014368,69636.0,69630.0,0.0144]
[1771063333372,0.028736,69636.0,69630.0,0.0144]
[1771063333568,0.014368,69636.0,69630.0,0.028769]
[1771063334263,0.014368,69636.0,69630.0,0.0144]
[1771063335179,0.0144,69640.0,69634.0,0.014368]
[1771063335380,0.0144,69640.0,69635.0,0.014368]
[1771063335864,0.0144,69640.0,69633.0,0.014368]
[1771063336373,0.028767,69640.0,69634.0,0.014368]
[1771063336574,0.014368,69636.0,69632.0,0.0144]
[1771063336975,0.014367,69641.0,69632.0,0.0144]
[1771063337175,0.014367,69639.0,69633.0,0.014368]
[1771063338080,0.028767,69639.0,69632.0,0.028769]
[1771063338374,0.043134,69639.0,69632.0,0.028769]
[1771063338676,0.028767,69639.0,69632.0,0.028769]
[1771063339375,0.028767,69639.0,69633.0,0.014368]
[1771063341178,0.0144,69639.0,69633.0,0.014368]
[1771063341370,0.09106558,69645.0,69639.0,0.014367]
[1771063341371,0.014366,69645.0,69639.0,0.014367]
[1771063341576,0.014366,69643.0,69637.0,0.014367]
[1771063341776,0.028766,69644.0,69638.0,0.014367]
[1771063342173,0.0144,69644.0,69639.0,0.014367]
[1771063342779,0.0144,69644.0,69640.0,0.014367]
[1771063342974,0.014366,69645.0,69641.0,0.014367]
[1771063343168,0.0144,69644.0,69640.0,0.014367]
[1771063343375,0.0144,69643.0,69642.0,0.014366]
[1771063343575,0.158045,69648.0,69643.0,0.014366]
[1771063344083,0.0144,69647.0,69643.0,0.014366]
[1771063344678,0.028766,69647.0,69642.0,0.014366]
[1771063344982,0.014366,69646.0,69640.0,0.014367]
[1771063345181,0.014366,69645.0,69640.0,0.014367]
[1771063345582,0.014366,69645.0,69641.0,0.014367]
[1771063346183,0.014366,69645.0,69640.0,0.014367]
[1771063346895,0.0144,69644.0,69640.0,0.014367]
[1771063348786,0.014366,69645.0,69640.0,0.014367]
[1771063348987,0.0144,69643.0,69640.0,0.014367]
[1771063349388,0.028766,69643.0,69636.0,0.0144]
[1771063349588,0.014367,69642.0,69636.0,0.0144]
[1771063349888,0.014367,69641.0,69636.0,0.028768]
[1771063350084,0.0144,69643.0,69636.0,0.0144]
[1771063350283,0.028766,69643.0,69639.0,0.014367]
[1771063350483,0.0144,69643.0,69637.0,0.014368]
[1771063350686,0.028766,69643.0,69639.0,0.014367]
[1771063351085,0.0144,69643.0,69639.0,0.014367]
[1771063351289,0.0144,69643.0,69636.0,0.028768]
[1771063351490,0.014367,69640.0,69636.0,0.0144]
[1771063351887,0.028767,69640.0,69635.0,0.014368]
[1771063352386,0.02781463,69640.0,69635.0,0.014368]
[1771063352586,0.0144,69640.0,69636.0,0.014368]
[1771063353090,0.0144,69640.0,69635.0,0.028736]
[1771063353888,0.0144,69640.0,69636.0,0.014368]
[1771063354089,0.0144,69640.0,69635.0,0.014368]
[1771063357792,0.028767,69640.0,69635.0,0.014368]
[1771063357992,0.014367,69639.0,69634.0,0.014368]
[1771063358191,0.028767,69640.0,69634.0,0.014368]
[1771063359595,0.014367,69639.0,69632.0,0.028769]
[1771063359896,0.014369,69631.0,69625.0,0.01437]
[1771063360091,0.014369,69631.0,69626.0,0.0144]
[1771063360890,0.014369,69630.0,69626.0,0.0144]
[1771063361094,0.014369,69631.0,69626.0,0.0144]
[1771063363897,0.014369,69632.0,69627.0,0.0144]
[1771063364096,0.014369,69629.0,69628.0,0.0144]
[1771063364295,0.014369,69628.0,69627.0,0.0144]
[1771063364495,0.014369,69628.0,69621.0,0.158051]
[1771063364496,0.014369,69628.0,69622.0,0.014371]
[1771063365002,0.014368,69633.0,69626.0,0.01437]
[1771063365299,0.014369,69632.0,69626.0,0.01437]
[1771063365495,0.014369,69632.0,69627.0,0.0144]
[1771063365899,0.0144,69634.0,69627.0,0.0144]
[1771063366093,0.0144,69634.0,69628.0,0.014369]
[1771063366406,0.0144,69634.0,69629.0,0.014369]
[1771063366997,0.028768,69634.0,69628.0,0.014369]
[1771063367195,0.01437,69627.0,69622.0,0.15808]
[1771063367394,0.01437,69627.0,69620.0,0.014371]
[1771063367595,0.01437,69627.0,69620.0,0.028771]
[1771063367995,0.0144,69631.0,69627.0,0.01437]
[1771063368195,0.0144,69631.0,69627.0,0.02874]
[1771063368397,0.0144,69631.0,69628.0,0.014369]
[1771063368598,0.0144,69631.0,69627.0,0.01437]
[1771063368903,0.014368,69633.0,69627.0,0.01437]
[1771063369097,0.0144,69632.0,69627.0,0.01437]
[1771063369296,0.0144,69632.0,69627.0,0.014369]
[1771063369700,0.0144,69632.0,69628.0,0.014369]
[1771063371905,0.0144,69632.0,69629.0,0.014369]
[1771063372109,0.043136,69635.0,69629.0,0.014369]
[1771063372399,0.028768,69635.0,69629.0,0.014369]
[1771063372605,0.014368,69634.0,69629.0,0.014369]
[1771063373004,0.014368,69634.0,69628.0,0.014369]
[1771063376512,0.028768,69635.0,69628.0,0.014369]
[1771063376715,0.08620745,69658.0,69641.0,0.014367]
[1771063376912,0.014365,69652.0,69645.0,0.014366]
[1771063377105,0.028765,69652.0,69645.0,0.014366]
[1771063377505,0.014365,69651.0,69645.0,0.014366]
[1771063378008,0.014365,69650.0,69644.0,0.028766]
[1771063378209,0.014365,69649.0,69643.0,0.0144]
[1771063378409,0.014365,69651.0,69644.0,0.014366]
[1771063378909,0.014365,69650.0,69644.0,0.014366]
[1771063379113,0.014365,69651.0,69644.0,0.014366]
[1771063379612,0.014366,69646.0,69636.0,0.014368]
[1771063379810,0.10060745,69647.0,69637.0,0.0144]
[1771063380015,0.014367,69643.0,69637.0,0.0144]
[1771063380211,0.014367,69643.0,69636.0,0.014368]
[1771063380517,0.014367,69641.0,69636.0,0.0144]
[1771063381116,0.014367,69640.0,69635.0,0.0144]
[1771063381413,0.014367,69640.0,69630.0,0.14368]
[1771063381618,0.014367,69640.0,69631.0,0.0144]
[1771063381917,0.014367,69640.0,69633.0,0.014368]
[1771063382119,0.014367,69639.0,69634.0,0.0144]
[1771063382422,0.014367,69639.0,69631.0,0.0144]
[1771063382423,0.028736,69636.0,69631.0,0.0144]
[1771063382620,0.0144,69638.0,69636.0,0.014368]
[1771063382816,0.0144,69642.0,69635.0,0.08264157]
[1771063383012,0.0144,69645.0,69641.0,0.014367]
[1771063383217,0.014365,69649.0,69641.0,0.014367]
[1771063383218,0.0144,69646.0,69641.0,0.014367]
[1771063384019,0.0144,69646.0,69641.0,0.028734]
[1771063384220,0.0144,69647.0,69641.0,0.014367]
[1771063384423,0.0144,69647.0,69642.0,0.014366]
[1771063384629,0.0144,69647.0,69643.0,0.014366]
[1771063384930,0.028765,69648.0,69642.0,0.014367]
[1771063385421,0.014367,69640.0,69634.0,0.014368]
[1771063385624,0.014367,69641.0,69635.0,0.028768]
[1771063385920,0.014367,69642.0,69636.0,0.014368]
[1771063386117,0.014366,69645.0,69638.0,0.014367]
[1771063386424,0.014366,69644.0,69638.0,0.014367]
[1771063386614,0.014366,69644.0,69638.0,0.028767]
[1771063387221,0.014366,69643.0,69638.0,0.0144]
[1771063387912,0.014366,69644.0,69638.0,0.0144]
[1771063388923,0.014367,69640.0,69638.0,0.0144]
[1771063389925,0.014367,69642.0,69638.0,0.0144]
[1771063390520,0.0144,69644.0,69637.0,0.0144]
[1771063390521,0.014367,69639.0,69637.0,0.0144]
[1771063390724,0.014367,69640.0,69637.0,0.0144]
[1771063391025,0.014367,69641.0,69637.0,0.0144]
[1771063393517,4.4e-07,69634.0,69632.0,0.014369]
[1771063393716,0.014367,69641.0,69633.0,0.0144]
[1771063393917,1.8e-07,69634.0,69633.0,0.028768]
[1771063394127,0.014367,69641.0,69633.0,0.028768]
[1771063394327,0.014367,69641.0,69635.0,0.014368]
[1771063394525,1e-08,69634.0,69633.0,0.014368]
[1771063394725,0.014367,69641.0,69633.0,0.014368]
[1771063394726,0.014367,69641.0,69633.0,0.028768]
[1771063394920,0.0718038,69634.0,69633.0,0.028768]
[1771063395126,0.014367,69641.0,69635.0,0.014368]
[1771063395328,0.0144,69644.0,69638.0,0.014367]
[1771063395629,1e-08,69634.0,69633.0,0.09704157]
[1771063395831,0.0144,69644.0,69641.0,0.014367]
[1771063396129,6.6e-07,69637.0,69636.0,0.014368]
[1771063396325,0.0144,69645.0,69641.0,0.014367]
[1771063396530,0.0144,69647.0,69641.0,0.014367]
[1771063396732,0.0144,69647.0,69638.0,0.09700857]
[1771063397030,4.3e-07,69639.0,69638.0,0.09700857]
[1771063397232,0.0144,69647.0,69638.0,0.11140857]
[1771063397533,2e-08,69639.0,69638.0,0.11140857]
[1771063397835,0.0144,69647.0,69638.0,0.11140857]
[1771063398030,5.8e-07,69640.0,69639.0,0.014367]
[1771063398228,0.0144,69647.0,69639.0,0.014367]
[1771063398423,0.014365,69648.0,69642.0,0.014366]
[1771063398630,0.014365,69648.0,69641.0,0.0144]
[1771063398825,2e-07,69640.0,69639.0,0.014367]
[1771063399034,0.014365,69648.0,69639.0,0.09704157]
[1771063399234,4.1e-07,69640.0,69639.0,0.09704157]
[1771063399431,0.028765,69650.0,69639.0,0.09704157]
[1771063399731,4e-07,69640.0,69639.0,0.09704157]
[1771063400032,0.014365,69648.0,69639.0,0.11140857]
[1771063400231,0.014365,69648.0,69640.0,0.08264157]
[1771063400439,0.014365,69648.0,69641.0,0.014367]
[1771063400633,8.6e-07,69640.0,69639.0,0.014367]
[1771063400834,0.21538263,69643.0,69641.0,0.014367]
[1771063401136,0.21538263,69643.0,69642.0,0.0144]
[1771063401537,0.008365,69648.0,69642.0,0.028766]
[1771063402034,0.014365,69649.0,69642.0,0.028766]
[1771063402239,0.07179473,69643.0,69642.0,0.028766]
[1771063403236,0.01492473,69650.0,69642.0,0.028766]
[1771063403437,0.07179472,69643.0,69642.0,0.028766]
[1771063403638,0.01492473,69650.0,69642.0,0.028766]
[1771063403831,0.07179472,69643.0,69642.0,0.028766]
[1771063404339,0.02936639,69643.0,69642.0,0.028766]
[1771063404542,0.014365,69649.0,69642.0,0.028766]
[1771063404841,0.07179473,69643.0,69642.0,0.028766]
[1771063405337,0.014365,69649.0,69642.0,0.028766]
[1771063405741,7.2e-07,69643.0,69642.0,0.028767]
[1771063405942,0.03766301,69643.0,69642.0,0.0144]
[1771063406242,1e-08,69643.0,69642.0,0.028767]
[1771063411747,1e-08,69643.0,69642.0,0.125602]
[1771063412044,1.3e-07,69643.0,69642.0,0.111235]
[1771063412243,0.0144,69656.0,69650.0,0.014365]
[1771063412434,3e-07,69647.0,69646.0,0.028766]
[1771063413039,4.5e-07,69647.0,69646.0,0.028766]
[1771063413239,0.0144,69657.0,69649.0,0.014365]
[1771063413539,4.8e-07,69648.0,69646.0,0.028766]
[1771063413738,0.028764,69657.0,69648.0,0.014365]
[1771063413937,0.028764,69657.0,69646.0,0.028766]
[1771063414137,6.6e-07,69649.0,69648.0,0.014365]
[1771063414342,0.05742354,69649.0,69648.0,0.014365]
[1771063414543,5.4e-07,69649.0,69648.0,0.014365]
[1771063415441,5.4e-07,69649.0,69647.0,0.014365]
[1771063415641,0.014366,69645.0,69638.0,0.158047]
[1771063415941,0.014366,69646.0,69639.0,0.0144]
[1771063416241,5.4e-07,69637.0,69632.0,0.158049]
[1771063416443,5.4e-07,69637.0,69633.0,0.0144]
[1771063417942,5.4e-07,69637.0,69628.0,0.014369]
[1771063417943,0.1033252,69637.0,69618.0,0.096835]
[1771063418144,5.4e-07,69627.0,69625.0,0.01437]
[1771063418347,5.4e-07,69627.0,69626.0,0.0144]
[1771063418942,5.4e-07,69627.0,69624.0,0.0144]
[1771063419346,0.014368,69634.0,69625.0,0.01437]
[1771063419650,7.1e-07,69625.0,69624.0,0.02877]
[1771063419844,0.05744328,69625.0,69624.0,0.02877]
[1771063420553,0.08895666,69641.0,69624.0,0.02877]
[1771063420554,0.014367,69641.0,69627.0,0.09502566]
[1771063420846,0.014367,69641.0,69629.0,0.014369]
[1771063421047,9e-08,69629.0,69628.0,0.0144]
[1771063421243,0.158046,69643.0,69636.0,0.014368]
[1771063421438,0.0286989,69632.0,69631.0,0.0144]
[1771063421737,0.014367,69642.0,69635.0,0.014368]
[1771063421936,0.014367,69642.0,69633.0,0.014368]
[1771063421937,0.057434,69635.0,69633.0,0.014368]
[1771063422150,0.014367,69642.0,69633.0,0.014368]
[1771063422355,9.8e-07,69635.0,69634.0,0.028768]
[1771063422649,9.8e-07,69635.0,69634.0,0.12379366]
[1771063423549,6.6e-07,69637.0,69636.0,0.014368]
[1771063423753,0.014366,69646.0,69639.0,0.014367]
[1771063423945,5.8e-07,69638.0,69637.0,0.014368]
[1771063424144,5.8e-07,69638.0,69637.0,0.0144]
[1771063424650,5.8e-07,69638.0,69637.0,0.028768]
[1771063425252,0.07179967,69638.0,69637.0,0.028768]
[1771063426147,6.7e-07,69638.0,69637.0,0.028768]
[1771063428648,0.05743288,69638.0,69637.0,0.028768]
[1771063428846,8.8e-07,69638.0,69637.0,0.028768]
[1771063429050,0.014366,69647.0,69639.0,0.014367]
[1771063429249,8.8e-07,69638.0,69637.0,0.028768]
[1771063429654,6.7e-07,69638.0,69637.0,0.028768]
[1771063430157,0.07179968,69638.0,69637.0,0.0144]
[1771063430354,6.8e-07,69638.0,69637.0,0.028768]
[1771063430750,0.05743288,69638.0,69637.0,0.028768]
[1771063431151,0.05343288,69638.0,69637.0,0.028768]
[1771063431855,0.03743288,69638.0,69637.0,0.028768]
[1771063432156,8.8e-07,69638.0,69637.0,0.028768]
[1771063434851,8.7e-07,69638.0,69637.0,0.028768]
[1771063441759,0.0144,69651.0,69647.0,0.014365]
[1771063441954,0.0144,69655.0,69649.0,0.014365]
[1771063442150,0.0144,69657.0,69652.0,0.014364]
[1771063442351,3.3e-07,69646.0,69645.0,0.014366]
[1771063442563,0.014363,69662.0,69655.0,0.014364]
[1771063442765,4e-07,69650.0,69648.0,0.10695415]
[1771063442961,0.014363,69662.0,69655.0,0.014364]
[1771063443161,0.01429176,69651.0,69650.0,0.09258915]
[1771063443468,0.014362,69663.0,69652.0,0.04953305]
[1771063443663,0.014362,69663.0,69655.0,0.014364]
[1771063444156,0.014362,69663.0,69655.0,0.028764]
[1771063444357,0.028762,69664.0,69649.0,0.09258915]
[1771063444358,1.2e-07,69651.0,69650.0,0.014365]
[1771063444563,1.2e-07,69651.0,69650.0,0.028765]
[1771063445163,5.6e-07,69651.0,69650.0,0.0144]
[1771063445358,5.6e-07,69651.0,69650.0,0.028765]
[1771063445662,6.5e-07,69651.0,69650.0,0.028765]
[1771063446767,0.2525724,69666.0,69650.0,0.028765]
[1771063446768,1e-07,69652.0,69651.0,0.014365]
[1771063446960,0.11552977,69666.0,69651.0,0.014365]
[1771063447160,9.9e-07,69653.0,69651.0,0.014365]
[1771063447762,9.9e-07,69653.0,69652.0,0.014364]
[1771063448066,2.1e-07,69653.0,69652.0,0.014364]
[1771063449369,2.1e-07,69653.0,69651.0,0.014365]
[1771063449972,2.1e-07,69653.0,69641.0,0.09258915]
[1771063450267,2.1e-07,69653.0,69603.0,1.2692497]
[1771063450268,2.1e-07,69653.0,69646.0,0.014366]
[1771063450462,2.1e-07,69653.0,69647.0,0.0144]
[1771063450664,0.014365,69650.0,69646.0,0.0144]
[1771063450865,0.014365,69649.0,69646.0,0.0144]
[1771063451861,0.014365,69649.0,69645.0,0.0144]
[1771063452161,0.014365,69648.0,69645.0,0.0144]
[1771063452363,0.014365,69648.0,69641.0,0.014367]
[1771063452364,0.014365,69648.0,69644.0,0.01439979]
[1771063452565,0.05739451,69643.0,69641.0,0.014367]
[1771063452768,0.05739451,69643.0,69639.0,0.014367]
[1771063452968,0.05739451,69643.0,69640.0,0.014367]
[1771063453164,0.05739451,69643.0,69641.0,0.028767]